bitfinex/quotes_ETHUSD_20250403
["timestamp","ask_amount","ask_price","bid_price","bid_amount"]
[1743640062956,5.50512,1816.5,1816.2,0.01191218]
[1743640063157,0.06002698,1816.5,1816.2,0.01191218]
[1743640063358,5.50569,1816.3,1816.2,0.01191218]
[1743640063687,5.56514698,1816.5,1816.2,0.01191218]
[1743640064090,5.50512,1816.5,1816.2,0.01191218]
[1743640064268,0.06002698,1816.5,1816.2,0.01191218]
[1743640064469,5.50558,1816.4,1816.2,0.01191218]
[1743640064670,5.50541,1816.4,1816.2,0.01191218]
[1743640064870,5.50518,1816.5,1816.2,0.01191218]
[1743640065593,5.50518,1816.5,1816.2,5.51790218]
[1743640065794,5.50482,1816.6,1816.2,11.02371218]
[1743640065962,5.50481,1816.6,1816.2,5.51772218]
[1743640066375,5.50481,1816.6,1816.2,11.02358218]
[1743640066872,5.50481,1816.6,1816.3,5.50567]
[1743640067059,11.00986,1816.6,1816.2,5.51772218]
[1743640067479,5.50481,1816.6,1816.2,0.06696413]
[1743640067679,5.50528,1816.5,1816.2,0.01191218]
[1743640067866,5.50556,1816.4,1816.2,0.01191218]
[1743640068059,5.50546,1816.4,1816.2,0.01191218]
[1743640068255,5.50546,1816.4,1816.3,6.08]
[1743640068684,6.37558698,1816.4,1816.3,6.08]
[1743640069002,8.50569,1816.3,1816.2,0.01191218]
[1743640069367,13.66581569,1816.3,1816.2,0.01191218]
[1743640069686,14.41218871,1816.3,1816.2,0.01191218]
[1743640069856,14.41218871,1816.3,1816.2,2.18e-06]
[1743640070392,14.81843216,1816.3,1816.2,2.18e-06]
[1743640070594,15.53340653,1816.3,1816.2,2.18e-06]
[1743640072863,5.50842,1815.4,1815.3,6.08]
[1743640073262,5.56844698,1815.4,1815.3,6.08]
[1743640075105,5.50903,1815.2,1814.9,6.08]
[1743640075263,7.45584398,1815.2,1814.9,6.08]
[1743640075691,6.67084398,1815.2,1814.9,6.08]
[1743640075879,5.56905698,1815.2,1814.9,6.08]
[1743640077179,5.79523241,1815.4,1814.9,11.58993]
[1743640077379,5.50884,1815.3,1815.1,0.8772]
[1743640077592,5.79512241,1815.4,1815.1,0.8772]
[1743640077769,5.50812,1815.5,1815.2,6.08]
[1743640077969,5.50812,1815.5,1815.2,12.147]
[1743640078595,5.50782,1815.6,1815.2,17.65602]
[1743640078782,5.56784698,1815.6,1815.2,17.65591]
[1743640078989,11.07587698,1815.6,1815.2,17.65591]
[1743640079189,5.50819,1815.5,1815.2,17.65591]
[1743640079492,5.79387544,1815.8,1815.5,5.50809]
[1743640079683,5.56764698,1815.7,1815.3,6.8694]
[1743640079878,5.50814,1815.5,1815.3,6.8694]
[1743640080088,5.50788,1815.6,1815.3,6.8694]
[1743640080283,5.50813,1815.5,1815.3,6.8694]
[1743640080478,5.50873,1815.3,1815.2,6.08]
[1743640080884,5.50903,1815.2,1815.1,6.167]
[1743640081272,5.56905698,1815.2,1815.1,6.167]
[1743640081586,1.101543,1815.6,1815.1,0.1]
[1743640081793,5.50893,1815.3,1815.1,0.1]
[1743640081995,5.50903,1815.2,1815.1,0.1]
[1743640082498,5.56905698,1815.2,1815.1,0.1]
[1743640083309,6.32855698,1815.2,1815.1,0.1]
[1743640084309,9.32855698,1815.2,1815.1,0.1]
[1743640086981,9.32855698,1815.2,1815.1,1e-05]
[1743640087278,5.51146,1814.4,1814.3,6.08]
[1743640087477,5.51207,1814.2,1814.1,0.1]
[1743640087802,8.57209698,1814.2,1814.1,0.1]
[1743640090084,5.51491,1813.3,1813.1,6.978]
[1743640090279,5.51421,1813.5,1813.1,6.978]
[1743640090480,0.06002698,1813.4,1813.1,12.49329]
[1743640090673,5.51421,1813.5,1813.1,12.49329]
[1743640090878,5.5145,1813.4,1813.1,12.49329]
[1743640091302,5.51422,1813.5,1813.1,12.49335]
[1743640091485,5.57424698,1813.5,1813.1,13.742685]
[1743640092008,5.51464,1813.4,1813.1,8.227335]
[1743640092177,5.51511,1813.2,1813.1,0.1]
[1743640092580,5.57513698,1813.2,1813.1,0.1]
[1743640092795,8.57513698,1813.2,1813.1,0.1]
[1743640093513,8.86156209,1813.2,1813.1,0.1]
[1743640095703,8.51437,1813.5,1813.1,6.40511]
[1743640095902,5.51511,1813.2,1813.1,0.8897]
[1743640096216,5.57513698,1813.2,1813.1,0.1]
[1743640097193,5.80095433,1813.4,1813.1,0.1]
[1743640097394,0.06002698,1813.3,1813.1,0.1]
[1743640098084,5.57488698,1813.3,1813.1,0.1]
[1743640098387,5.51511,1813.2,1813.1,0.1]
[1743640098918,5.57513698,1813.2,1813.1,0.1]
[1743640099322,0.06002698,1813.2,1813.1,0.1]
[1743640099527,0.06002698,1813.3,1813.1,5.61541]
[1743640099711,5.57485698,1813.3,1813.1,0.1]
[1743640100102,5.51511,1813.2,1813.1,0.1]
[1743640100422,5.80088433,1813.4,1813.1,0.1]
[1743640100623,0.06002698,1813.3,1813.1,0.1]
[1743640100927,0.28637433,1813.4,1813.2,6.32892]
[1743640101225,5.51511,1813.2,1813.1,0.1]
[1743640101418,6.67812798,1813.2,1813.1,0.1]
[1743640101595,5.57513698,1813.2,1813.1,0.1]
[1743640102423,5.51494,1813.3,1813.1,0.1]
[1743640102626,5.57513698,1813.2,1813.1,0.1]
[1743640105640,8.57513698,1813.2,1813.1,0.1]
[1743640106003,8.57513698,1813.2,1813.1,1e-05]
[1743640106004,14.8930245,1813.2,1813.1,1e-05]
[1743640106203,15.66778741,1813.2,1813.1,1e-05]
[1743640107334,18.97278741,1813.2,1813.1,1e-05]
[1743640108805,15.66778741,1813.2,1813.1,1e-05]
[1743640109155,14.83299752,1813.2,1813.1,1e-05]
[1743640109636,18.13799752,1813.2,1813.1,1e-05]
[1743640109811,5.51785,1812.3,1812.1,0.1]
[1743640110017,5.57817698,1812.2,1812.1,0.1]
[1743640113054,14.49857569,1812.2,1812.1,0.1]
[1743640113338,14.43854871,1812.2,1812.1,0.1]
[1743640114478,9.33845,1812.2,1812.1,0.1]
[1743640114680,8.57817698,1812.2,1812.1,0.1]
[1743640114879,5.57817698,1812.2,1812.1,0.1]
[1743640115181,0.06002698,1812.2,1812.1,0.1]
[1743640116078,5.57817698,1812.2,1812.1,0.1]
[1743640117133,0.06002698,1812.2,1812.1,0.1]
[1743640117330,11.09615698,1812.3,1812.1,0.1]
[1743640117530,5.51757,1812.4,1812.1,5.61832]
[1743640117935,5.57759698,1812.4,1812.1,5.61832]
[1743640118130,0.06002698,1812.4,1812.1,7.421736]
[1743640118353,5.57770698,1812.4,1812.1,1.903416]
[1743640118562,5.57770698,1812.4,1812.1,7.421866]
[1743640118761,5.57770698,1812.4,1812.1,1.903416]
[1743640119168,5.57770698,1812.4,1812.1,0.1]
[1743640119370,5.51815,1812.2,1812.1,0.1]
[1743640119682,5.57817698,1812.2,1812.1,0.1]
[1743640120963,5.51754,1812.4,1812.1,0.1]
[1743640121157,5.51815,1812.2,1812.1,0.1]
[1743640121355,0.06002698,1812.3,1812.1,0.1]
[1743640121531,0.06002698,1812.3,1812.2,0.7562]
[1743640121736,5.51785,1812.3,1812.2,0.7562]
[1743640121937,5.57787698,1812.3,1812.2,0.7562]
[1743640122136,11.03527,1812.4,1812.2,0.7562]
[1743640122435,0.7779,1812.2,1811.6,6.08]
[1743640122636,5.51918,1811.9,1811.6,6.08]
[1743640122835,0.06002698,1811.8,1811.6,6.08]
[1743640123054,5.51969,1811.7,1811.4,11.60056]
[1743640123448,0.06002698,1811.7,1811.4,17.12104]
[1743640123648,0.06002698,1811.8,1811.5,5.52017]
[1743640124376,5.57944698,1811.8,1811.5,5.52017]
[1743640124734,5.51849,1812.1,1811.6,6.31413]
[1743640124735,5.51879,1812.0,1811.6,6.31413]
[1743640124955,0.06002698,1811.9,1811.6,11.83396]
[1743640125561,5.51848,1812.1,1811.7,5.57474724]
[1743640125770,5.57881698,1812.0,1811.7,11.0391]
[1743640125971,0.06002698,1812.0,1811.7,5.51955]
[1743640126170,0.06002698,1812.0,1811.6,6.8693]
[1743640126479,5.5188,1812.0,1811.6,12.38925]
[1743640126642,5.57911698,1811.9,1811.6,12.38925]
[1743640126847,5.51909,1811.9,1811.6,6.8693]
[1743640127047,5.57942698,1811.8,1811.6,6.8693]
[1743640128349,11.09898698,1811.8,1811.6,6.8693]
[1743640128656,5.5194,1811.8,1811.6,6.8693]
[1743640128845,5.57942698,1811.8,1811.6,6.8693]
[1743640129275,5.57942698,1811.8,1811.6,0.7943]
[1743640129464,11.09897698,1811.8,1811.6,0.7943]
[1743640129661,5.5194,1811.8,1811.6,0.7943]
[1743640129877,0.06002698,1811.8,1811.6,0.7943]
[1743640130567,5.57944698,1811.8,1811.6,0.7943]
[1743640130774,5.10009871,1812.3,1811.6,0.7943]
[1743640130775,5.51812,1812.3,1811.8,0.7805]
[1743640130981,5.51876,1812.0,1811.8,12.9355]
[1743640131160,5.51879,1812.0,1811.8,12.9355]
[1743640131768,0.06002698,1811.9,1811.8,6.8605]
[1743640131971,5.51956,1811.8,1811.6,0.7805]
[1743640132157,5.57969698,1811.7,1811.5,6.075]
[1743640132784,0.06002698,1811.7,1811.5,6.075]
[1743640133086,5.57912698,1811.9,1811.5,11.59515]
[1743640133251,5.57912698,1811.9,1811.6,5.51994]
[1743640133456,5.5194,1811.8,1811.5,6.075]
[1743640133659,0.06002698,1811.7,1811.5,6.075]
[1743640134681,6.65754725,1811.9,1811.5,11.59517]
[1743640134855,6.71757423,1811.9,1811.5,11.59517]
[1743640135294,6.71757423,1811.9,1811.5,17.11528]
[1743640135462,6.71757423,1811.9,1811.6,5.51992]
[1743640135670,0.06002698,1811.9,1811.6,5.51982]
[1743640135862,0.06002698,1811.9,1811.7,5.51967]
[1743640136203,0.06002698,1811.9,1811.7,5.51963]
[1743640136490,0.06002698,1811.9,1811.8,0.7988]
[1743640136863,11.09859698,1811.9,1811.5,12.3939]
[1743640137062,11.03857,1811.9,1811.5,12.3939]
[1743640137395,5.5205,1811.5,1811.1,5.62138]
[1743640137559,0.06002698,1811.4,1811.1,5.62138]
[1743640138403,11.0402,1811.6,1811.2,5.52118]
[1743640138705,0.06002698,1811.4,1811.1,5.62148]
[1743640138911,5.52008,1811.6,1811.1,5.62147]
[1743640139067,0.06002698,1811.4,1811.2,5.52106]
[1743640139412,5.58033698,1811.5,1811.2,5.52106]
[1743640139592,11.10082698,1811.5,1811.1,5.62147]
[1743640139793,11.0408,1811.5,1811.1,5.62147]
[1743640139965,0.06002698,1811.4,1811.1,5.62147]
[1743640140159,0.06002698,1811.4,1811.1,5.62135]
[1743640140360,5.58072698,1811.4,1811.1,5.62135]
[1743640140610,0.06002698,1811.4,1811.1,0.1]
[1743640140893,5.52038,1811.5,1811.1,11.84068]
[1743640141090,0.06002698,1811.4,1811.1,5.62133]
[1743640141296,5.5212,1811.2,1811.1,0.1]
[1743640141587,5.58122698,1811.2,1811.1,0.1]
[1743640142697,14.24824089,1811.2,1811.1,0.1]
[1743640142893,14.18821391,1811.2,1811.1,0.1]
[1743640143220,5.52394,1810.3,1810.2,6.08]
[1743640143378,9.27363,1810.6,1810.2,11.60412]
[1743640143578,0.06002698,1810.5,1810.2,11.60412]
[1743640143805,5.58352698,1810.5,1810.2,6.08]
[1743640144018,5.52389,1810.4,1810.1,0.1]
[1743640144312,0.06002698,1810.3,1810.1,0.1]
[1743640144489,5.58391698,1810.4,1810.1,0.1]
[1743640145231,11.10774698,1810.4,1810.1,0.1]
[1743640145527,6.7144047,1810.4,1810.1,0.1]
[1743640145743,0.06002698,1810.4,1810.1,0.1]
[1743640146027,5.58333698,1810.6,1810.2,11.79861]
[1743640146225,3.0,1810.4,1810.1,1e-05]
[1743640146425,5.58400698,1810.3,1810.1,1e-05]
[1743640146803,5.52425,1810.2,1810.1,1e-05]
[1743640147005,14.4191846,1810.2,1810.1,1e-05]
[1743640147532,14.70601997,1810.2,1810.1,1e-05]
[1743640148403,11.05438,1809.3,1809.1,0.1]
[1743640148631,5.58732698,1809.2,1809.1,0.1]
[1743640149152,0.7747,1809.6,1809.1,0.718]
[1743640149304,5.52702,1809.3,1809.1,0.718]
[1743640149500,5.5264,1809.5,1809.1,5.62746]
[1743640149725,5.58695698,1809.4,1809.1,0.1]
[1743640149922,0.06002698,1809.4,1809.1,0.1]
[1743640150140,0.06002698,1809.5,1809.1,5.6276]
[1743640150340,0.06002698,1809.5,1809.1,11.70758]
[1743640150541,0.06002698,1809.5,1809.2,5.52701]
[1743640150849,0.06002698,1809.5,1809.2,11.05415]
[1743640151142,0.06002698,1809.5,1809.2,5.52701]
[1743640151441,0.06002698,1809.5,1809.3,0.7965]
[1743640151607,5.52643,1809.5,1809.2,6.08]
[1743640152051,5.58645698,1809.5,1809.2,6.08]
[1743640152203,0.06002698,1809.4,1809.2,6.08]
[1743640152409,0.06002698,1809.4,1809.1,0.8965]
[1743640152623,5.52698,1809.4,1809.1,0.8965]
[1743640152821,0.06002698,1809.3,1809.1,0.8965]
[1743640153050,0.06002698,1809.4,1809.1,7.066308]
[1743640153249,0.06002698,1809.6,1809.2,5.52717]
[1743640153404,0.06002698,1809.6,1809.4,5.52664]
[1743640153735,0.06002698,1809.7,1809.4,17.13313]
[1743640153906,0.06002698,1809.8,1809.5,5.52621]
[1743640154106,5.5252,1809.9,1809.6,0.7828]
[1743640154417,0.06002698,1809.9,1809.6,12.38786]
[1743640154619,0.06002698,1809.9,1809.6,12.38776]
[1743640154829,5.58522698,1809.9,1809.6,12.38776]
[1743640155344,5.58490698,1810.0,1809.7,11.60577]
[1743640155525,0.06002698,1809.9,1809.7,6.08]
[1743640155944,5.58530698,1809.9,1809.7,6.08]
[1743640156145,0.06002698,1809.9,1809.7,6.08]
[1743640156526,5.52561,1809.8,1809.3,5.5267]
[1743640156725,5.58579698,1809.7,1809.3,11.05356]
[1743640156933,0.06002698,1809.7,1809.4,5.52664]
[1743640157137,5.58563698,1809.8,1809.4,11.60664]
[1743640157467,11.05179,1809.7,1809.4,6.08]
[1743640157673,0.06002698,1809.6,1809.4,6.08]
[1743640157965,5.58620698,1809.6,1809.4,6.08]
[1743640158122,11.11254698,1809.6,1809.4,6.08]
[1743640158321,5.52638,1809.5,1809.4,6.08]
[1743640159482,5.58640698,1809.5,1809.4,6.08]
[1743640160034,0.06002698,1809.5,1809.4,6.08]
[1743640160264,5.58591698,1809.7,1809.4,6.08]
[1743640160567,5.52577,1809.8,1809.5,6.33149]
[1743640160786,5.58579698,1809.8,1809.5,6.33149]
[1743640161484,5.58579698,1809.8,1809.5,12.41149]
[1743640162000,5.5258,1809.7,1809.5,6.8852]
[1743640162172,5.52565,1809.8,1809.5,12.9652]
[1743640162382,0.06002698,1809.8,1809.5,20.340732]
[1743640162697,11.0508,1809.9,1809.5,20.340732]
[1743640162890,0.06002698,1809.8,1809.5,20.340732]
[1743640163191,5.58549698,1809.8,1809.5,20.340732]
[1743640163396,5.52588,1809.7,1809.5,6.8852]
[1743640163600,5.52547,1809.8,1809.5,12.41152]
[1743640163788,0.06002698,1809.8,1809.5,6.8852]
[1743640163988,5.58505698,1810.0,1809.6,11.05194]
[1743640164196,5.58505698,1810.0,1809.7,5.52574]
[1743640164509,0.7657,1810.5,1809.9,6.27766]
[1743640164818,0.06002698,1810.9,1810.6,5.52298]
[1743640165101,0.7657,1811.1,1810.6,5.52298]
[1743640165102,0.3468011,1810.8,1810.6,12.16]
[1743640165399,11.10458698,1810.9,1810.6,12.16]
[1743640165693,5.52224,1810.9,1810.6,12.16]
[1743640165902,5.58185698,1811.0,1810.6,23.20582]
[1743640166101,0.06002698,1811.0,1810.7,5.52255]
[1743640166610,0.06002698,1811.0,1810.8,6.2954]
[1743640166824,5.58156698,1811.1,1810.6,18.44278]
[1743640166999,11.04397,1811.0,1810.6,18.44278]
[1743640167210,5.52191,1811.0,1810.6,18.44278]
[1743640167387,6.16836404,1811.1,1810.7,5.52258]
[1743640167581,5.58153698,1811.1,1810.7,11.04513]
[1743640167779,5.52242,1810.8,1810.6,12.9199]
[1743640168401,5.52215,1810.9,1810.6,12.9199]
[1743640168621,0.06002698,1810.9,1810.6,6.08]
[1743640168794,5.52272,1810.7,1810.6,6.08]
[1743640168997,6.68728098,1810.7,1810.6,6.08]
[1743640169413,5.5222,1810.9,1810.6,6.08]
[1743640169618,5.52245,1810.8,1810.6,6.08]
[1743640169820,5.52215,1810.9,1810.6,11.60301]
[1743640170148,5.58217698,1810.9,1810.6,6.8382]
[1743640170434,11.04337,1811.1,1810.7,5.52259]
[1743640170642,0.06002698,1811.0,1810.7,5.52259]
[1743640170843,0.06002698,1811.0,1810.8,5.52241]
[1743640170998,0.06002698,1811.1,1810.8,11.04464]
[1743640171200,5.86795062,1811.2,1810.8,11.60023]
[1743640171402,5.52181,1811.0,1810.6,6.8382]
[1743640171649,5.52256,1810.8,1810.6,6.08]
[1743640171802,3.88662698,1811.0,1810.5,6.08]
[1743640172002,5.58183698,1811.0,1810.6,5.52281]
[1743640172248,5.52213,1810.9,1810.6,5.52281]
[1743640172552,5.52213,1810.9,1810.5,11.60328]
[1743640172553,5.52244,1810.8,1810.5,11.60328]
[1743640172703,5.58246698,1810.8,1810.5,6.08]
[1743640172903,8.52153,1811.1,1810.7,5.52272]
[1743640173127,5.58185698,1811.0,1810.6,11.04593]
[1743640173633,5.58185698,1811.0,1810.6,11.04581]
[1743640173836,5.58185698,1811.0,1810.6,5.52289]
[1743640174031,5.52218,1810.9,1810.6,5.52289]
[1743640174334,5.52218,1810.9,1810.7,6.077]
[1743640174631,0.06002698,1810.9,1810.7,6.077]
[1743640174833,11.04393,1811.0,1810.7,6.077]
[1743640175131,0.06002698,1810.9,1810.7,6.077]
[1743640175332,5.58214698,1810.9,1810.7,6.077]
[1743640175531,5.52242,1810.8,1810.5,6.08]
[1743640175743,5.58285698,1810.7,1810.5,6.08]
[1743640176332,0.06002698,1810.7,1810.5,6.08]
[1743640176528,6.34704698,1810.8,1810.5,11.60333]
[1743640176703,0.82462698,1810.8,1810.5,11.60333]
[1743640176903,5.52273,1810.7,1810.5,6.08]
[1743640177098,6.3083,1811.0,1810.6,5.52281]
[1743640177303,0.06002698,1810.9,1810.6,5.52281]
[1743640177532,0.06002698,1810.9,1810.7,5.52264]
[1743640177722,0.06002698,1811.0,1810.8,5.52242]
[1743640177924,5.58192698,1811.0,1810.7,12.353]
[1743640179742,5.58192698,1811.0,1810.7,18.433]
[1743640180543,8.52155,1811.1,1810.8,5.52241]
[1743640180860,8.58157698,1811.1,1810.8,5.52241]
[1743640181061,8.58157698,1811.1,1810.8,5.52229]
[1743640181625,3.0,1811.1,1810.9,6.08]
[1743640182173,0.34673062,1811.2,1810.9,17.12386]
[1743640182558,5.86798062,1811.2,1810.9,11.60205]
[1743640183468,0.34673062,1811.2,1811.0,5.52171]
[1743640183668,0.28670364,1811.2,1811.0,5.52171]
[1743640183826,0.28670364,1811.2,1811.1,5.5215]
[1743640184022,0.28670364,1811.2,1811.1,6.3034]
[1743640184255,5.52099,1811.3,1811.1,0.7819]
[1743640184423,11.04137,1811.4,1811.1,0.7819]
[1743640184624,11.0414,1811.4,1811.1,0.7819]
[1743640184856,5.52065,1811.4,1811.1,12.3783]
[1743640185274,0.28656683,1811.5,1811.3,5.5208]
[1743640185431,5.57987698,1811.7,1811.4,5.52059]
[1743640185627,5.57985698,1811.7,1811.4,11.60059]
[1743640185894,5.8660879,1811.8,1811.5,6.29267]
[1743640186092,5.57957698,1811.8,1811.5,12.36767]
[1743640186473,5.57956698,1811.8,1811.5,6.8475]
[1743640186662,0.06002698,1811.8,1811.6,6.08]
[1743640186871,5.67909698,1811.9,1811.6,11.59995]
[1743640187081,0.16002698,1811.9,1811.6,6.08]
[1743640187261,5.51967,1811.7,1811.6,6.08]
[1743640187456,5.57969698,1811.7,1811.6,6.08]
[1743640188713,5.57972698,1811.7,1811.2,6.08]
[1743640189004,5.52089,1811.3,1811.2,6.08]
[1743640189208,5.52131,1811.2,1811.0,6.08]
[1743640189361,5.521,1811.3,1811.0,6.08]
[1743640189562,5.52061,1811.4,1811.0,12.87228239]
[1743640189776,5.58063698,1811.4,1811.0,18.33872]
[1743640189996,5.52037,1811.5,1811.1,5.52148]
[1743640190259,5.52014,1811.6,1811.3,5.52089]
[1743640190464,5.52059,1811.4,1811.3,6.074]
[1743640191466,5.52055,1811.5,1811.3,6.074]
[1743640191808,5.58008698,1811.6,1811.3,7.310169]
[1743640192006,5.52036,1811.5,1811.3,6.074]
[1743640192180,11.04084,1811.5,1811.2,6.8397]
[1743640192381,5.52036,1811.5,1811.2,12.36087]
[1743640192907,5.52002,1811.6,1811.3,5.52078]
[1743640194012,5.52029,1811.5,1811.2,17.88204]
[1743640194497,5.52002,1811.6,1811.2,20.278244]
[1743640194818,0.8097,1811.5,1811.3,5.52089]
[1743640195095,5.5206,1811.4,1811.3,6.073]
[1743640195477,11.04075,1811.5,1811.3,6.073]
[1743640196497,5.52001,1811.6,1811.3,12.36294]
[1743640196666,5.58003698,1811.6,1811.3,12.36294]
[1743640196862,5.58003698,1811.6,1811.3,14.15135]
[1743640197168,5.52031,1811.5,1811.3,6.073]
[1743640198102,5.52059,1811.4,1811.3,6.073]
[1743640198507,5.51969,1811.7,1811.3,17.67382]
[1743640198664,11.04018,1811.6,1811.3,12.153]
[1743640198869,5.52004,1811.6,1811.3,12.153]
[1743640199094,11.04022,1811.6,1811.3,13.3683]
[1743640199394,5.52039,1811.5,1811.3,12.153]
[1743640199607,11.09958698,1811.7,1811.3,17.67379]
[1743640199796,5.51937,1811.8,1811.3,12.153]
[1743640199987,5.52007,1811.6,1811.3,12.153]
[1743640200186,5.52007,1811.6,1811.3,17.67383]
[1743640200502,11.03907,1811.8,1811.4,12.37162]
[1743640200804,5.52021,1811.6,1811.4,6.8511]
[1743640201013,5.52021,1811.6,1811.5,6.072]
[1743640201585,11.03956,1811.7,1811.5,6.072]
[1743640201791,5.51998,1811.6,1811.5,6.072]
[1743640201993,5.5212,1811.2,1811.1,6.08]
[1743640203110,5.52064,1811.4,1811.1,11.60141]
[1743640203298,11.04078,1811.5,1811.2,5.52116]
[1743640203486,11.04078,1811.5,1811.1,11.6014]
[1743640203687,11.32688715,1811.6,1811.2,6.38071789]
[1743640203888,0.28670715,1811.6,1811.3,12.23884179]
[1743640204213,5.51952,1811.8,1811.4,17.67246]
[1743640204380,5.51952,1811.8,1811.5,0.8088]
[1743640204704,0.1,1811.9,1811.8,5.51937]
[1743640205006,0.1,1811.9,1811.8,18.46917]
[1743640205176,0.1,1811.9,1811.8,21.419995]
[1743640206330,5.51666,1812.7,1812.4,0.7545]
[1743640206485,5.51724,1812.5,1812.4,12.8055]
[1743640206786,5.51724,1812.5,1812.4,12.051]
[1743640206787,5.57726698,1812.5,1812.4,12.051]
[1743640207238,5.51724,1812.5,1812.4,5.98]
[1743640207396,7.50958698,1812.5,1812.4,5.98]
[1743640208285,6.40616698,1812.5,1812.4,5.98]
[1743640209333,5.57726698,1812.5,1812.4,5.98]
[1743640209632,5.51696,1812.6,1812.4,5.98]
[1743640209801,5.51667,1812.7,1812.4,12.05]
[1743640210122,5.51724,1812.5,1812.4,5.98]
[1743640210325,7.47880798,1812.5,1812.4,5.98]
[1743640210494,10.47880798,1812.5,1812.4,5.98]
[1743640210691,5.5183,1812.2,1812.0,5.98]
[1743640210911,5.51873,1812.1,1811.9,6.8834]
[1743640211118,5.57760698,1812.4,1811.9,6.8834]
[1743640211119,5.51816,1812.2,1811.9,6.8834]
[1743640211328,5.51816,1812.2,1811.9,7.57174]
[1743640211499,5.51876,1812.0,1811.9,6.8834]
[1743640211701,1.901541,1812.5,1811.9,6.8834]
[1743640212004,5.51683,1812.7,1812.3,0.7959]
[1743640212205,5.51724,1812.5,1812.4,6.069]
[1743640212501,5.51703,1812.6,1812.4,6.069]
[1743640212701,5.51672,1812.7,1812.4,6.069]
[1743640213292,5.80293622,1812.8,1812.4,11.58642]
[1743640213495,5.61604,1812.9,1812.5,11.55238563]
[1743640213694,5.61604,1812.9,1812.5,11.49722]
[1743640213895,0.1,1812.9,1812.7,0.7992]
[1743640214230,5.61602,1812.9,1812.8,12.049]
[1743640214532,0.1,1812.9,1812.8,12.049]
[1743640215326,6.177594,1812.9,1812.8,12.049]
[1743640215630,0.1,1812.9,1812.8,12.049]
[1743640215805,0.1,1812.9,1812.8,18.39192]
[1743640218205,0.1,1812.9,1812.8,21.39192]
[1743640218404,0.06002698,1813.6,1813.0,5.51571]
[1743640218609,5.51367,1813.7,1813.3,5.51473]
[1743640218806,5.51367,1813.7,1813.4,11.947]
[1743640219309,5.61305,1813.9,1813.5,0.0551367]
[1743640219509,5.5134,1813.8,1813.4,19.207513]
[1743640219736,5.5134,1813.8,1813.4,19.207463]
[1743640219928,0.1,1813.9,1813.4,11.947]
[1743640220242,5.51419,1813.5,1813.4,5.88]
[1743640220446,5.51511,1813.2,1813.1,6.066]
[1743640220742,5.51453,1813.4,1813.1,17.46137]
[1743640220945,5.51359,1813.7,1813.3,0.7946]
[1743640221245,5.51331,1813.8,1813.4,11.39447]
[1743640221452,5.51331,1813.8,1813.5,6.066]
[1743640221748,5.61301,1813.9,1813.6,5.51389]
[1743640221936,11.1262,1813.9,1813.5,11.58001]
[1743640222250,5.51329,1813.8,1813.5,11.58001]
[1743640222418,5.61301,1813.9,1813.5,11.58001]
[1743640222749,0.1,1813.9,1813.6,5.51375]
[1743640222954,5.61302,1813.9,1813.5,11.58019]
[1743640223244,0.1,1813.9,1813.7,6.29677]
[1743640223545,0.1,1813.9,1813.8,5.88]
[1743640223745,0.1,1813.9,1813.8,11.39328]
[1743640224056,0.1,1813.9,1813.8,5.88]
[1743640224254,0.1,1813.9,1813.8,11.39328]
[1743640224458,0.1,1813.9,1813.8,13.16228]
[1743640225149,0.1,1813.9,1813.8,13.95538]
[1743640225525,5.51135,1814.5,1814.0,0.7931]
[1743640225730,5.51135,1814.5,1814.1,17.35514]
[1743640225935,5.51135,1814.5,1814.1,22.86737]
[1743640226453,5.51187,1814.3,1814.1,11.843]
[1743640226621,5.51207,1814.2,1814.1,11.843]
[1743640227238,5.51207,1814.2,1814.1,5.78]
[1743640227428,5.57209698,1814.2,1814.1,5.78]
[1743640227635,5.51207,1814.2,1814.1,5.78]
[1743640227845,5.57209698,1814.2,1814.1,5.78]
[1743640228850,5.51207,1814.2,1814.1,5.78]
[1743640229756,5.57209698,1814.2,1814.1,5.78]
[1743640229955,5.51207,1814.2,1814.1,5.78]
[1743640230160,6.75068098,1814.2,1814.1,5.78]
[1743640230370,5.51298,1813.9,1813.8,5.78]
[1743640231255,3.8096,1814.3,1813.8,5.78]
[1743640231419,5.51267,1814.0,1813.9,6.5479]
[1743640231618,5.51267,1814.0,1813.9,5.78]
[1743640232029,5.51325,1813.9,1813.7,5.78]
[1743640232441,5.51328,1813.8,1813.7,5.78]
[1743640232639,11.0257,1814.0,1813.7,7.04534]
[1743640232843,5.51279,1814.0,1813.8,5.78]
[1743640233043,5.51298,1813.9,1813.8,5.78]
[1743640233963,0.8096,1814.3,1813.8,11.29328]
[1743640234169,5.51278,1814.0,1813.8,5.78]
[1743640234329,5.51211,1814.2,1813.9,0.84522583]
[1743640234529,5.51249,1814.1,1813.9,0.7901]
[1743640234731,5.51267,1814.0,1813.9,0.7901]
[1743640234943,5.51298,1813.9,1813.8,5.78]
[1743640236834,5.51298,1813.9,1813.8,5.7767]
[1743640237035,11.02549,1814.0,1813.8,5.7767]
[1743640237265,5.51267,1814.0,1813.8,5.7767]
[1743640237649,3.8052,1814.2,1813.8,5.7767]
[1743640237650,5.51243,1814.1,1813.8,12.418914]
[1743640237859,5.51243,1814.1,1813.9,0.0551228]
[1743640238241,6.27457,1814.4,1814.0,5.7767]
[1743640238242,5.51181,1814.3,1814.0,5.7767]
[1743640238436,5.51181,1814.3,1814.0,11.8357]
[1743640238437,11.02386,1814.3,1814.0,11.8357]
[1743640238766,5.5122,1814.2,1814.0,14.39564352]